bitfinex/quotes_BTCUSD_20250817
["timestamp","ask_amount","ask_price","bid_price","bid_amount"]
[1755390981054,0.19976191,117590.0,117580.0,0.01829205]
[1755390981227,0.19976191,117590.0,117580.0,0.01302584]
[1755390981487,0.49192426,117590.0,117580.0,0.01302584]
[1755390981711,0.19976191,117590.0,117580.0,0.02044205]
[1755390981935,0.19976191,117590.0,117580.0,0.04162586]
[1755390982164,0.19796191,117590.0,117580.0,0.21172281]
[1755390982381,0.19796191,117590.0,117580.0,0.2095966]
[1755390982591,0.19796191,117590.0,117580.0,0.18841279]
[1755390983038,0.19796191,117590.0,117580.0,0.01831584]
[1755390983254,0.19796191,117590.0,117580.0,0.02044205]
[1755390984347,0.19976191,117590.0,117580.0,0.01302584]
[1755390985176,0.19976191,117590.0,117580.0,0.01515205]
[1755390985413,0.19976191,117590.0,117580.0,0.01829205]
[1755390985834,0.19976191,117590.0,117580.0,0.06634851]
[1755390986471,0.19976191,117590.0,117580.0,0.01829205]
[1755390987600,0.19976191,117590.0,117580.0,0.01616584]
[1755390988341,0.19976191,117590.0,117580.0,0.01302584]
[1755390989001,0.19976191,117590.0,117580.0,0.01616584]
[1755390989443,0.19379934,117590.0,117580.0,0.01616584]
[1755390990713,0.19379934,117590.0,117580.0,0.02834517]
[1755390990996,0.19379934,117590.0,117580.0,0.03049517]
[1755390993604,0.19383615,117590.0,117580.0,0.03049517]
[1755390994546,0.17788249,117590.0,117580.0,0.03049517]
[1755390995914,0.17788249,117590.0,117580.0,0.02044205]
[1755390996097,0.17788249,117590.0,117580.0,0.01616584]
[1755390997336,0.17788249,117590.0,117580.0,0.01829205]
[1755390998195,0.17788249,117590.0,117580.0,0.02045205]
[1755391003153,0.17788249,117590.0,117580.0,0.01832584]
[1755391004348,0.17788249,117590.0,117580.0,0.03716951]
[1755391005200,0.006,117590.0,117580.0,0.20939267]
[1755391005408,0.006,117590.0,117580.0,0.71896286]
[1755391006045,0.004,117590.0,117580.0,0.71896286]
[1755391006462,0.001,117590.0,117580.0,0.71796286]
[1755391006872,0.001,117590.0,117580.0,0.42680051]
[1755391007074,0.1702161,117600.0,117580.0,0.42680051]
[1755391007277,0.1702161,117600.0,117580.0,0.42366051]
[1755391007446,0.1702161,117600.0,117590.0,0.00305]
[1755391007664,0.17006873,117600.0,117590.0,0.00521]
[1755391008473,0.46243108,117600.0,117590.0,0.01723584]
[1755391008680,0.17008249,117590.0,117580.0,0.01302584]
[1755391008897,0.46245484,117590.0,117580.0,0.01302584]
[1755391009563,0.46245484,117590.0,117580.0,0.01202584]
[1755391009788,0.17029249,117590.0,117580.0,0.01202584]
[1755391009991,0.17006873,117600.0,117580.0,0.19158521]
[1755391010269,0.17006873,117600.0,117590.0,0.00305]
[1755391010432,0.17106873,117600.0,117590.0,0.00521]
[1755391010639,0.17006873,117600.0,117590.0,0.00521]
[1755391011515,0.17106873,117600.0,117590.0,0.00733603]
[1755391011954,0.17286873,117600.0,117590.0,0.00733603]
[1755391014166,0.17106873,117600.0,117590.0,0.00733603]
[1755391014353,0.46503108,117600.0,117590.0,0.00733603]
[1755391014835,0.46503108,117600.0,117590.0,0.00517603]
[1755391015774,0.17286873,117600.0,117590.0,0.00517603]
[1755391016005,0.46503108,117600.0,117590.0,0.00517603]
[1755391016219,0.46503108,117600.0,117590.0,0.01720187]
[1755391016419,0.17286873,117600.0,117590.0,0.04606499]
[1755391016842,0.17106873,117600.0,117590.0,0.21402145]
[1755391017984,0.17106873,117600.0,117590.0,0.34906145]
[1755391018189,0.46503108,117600.0,117590.0,0.15227584]
[1755391018439,0.17286873,117600.0,117590.0,0.14706584]
[1755391018642,0.46503108,117600.0,117590.0,0.15011584]
[1755391018903,0.46503108,117600.0,117590.0,0.01202584]
[1755391019119,0.17008249,117590.0,117580.0,0.26490519]
[1755391019320,0.17008249,117590.0,117580.0,0.10204989]
[1755391019535,0.46404484,117590.0,117580.0,0.09988989]
[1755391019843,0.46404484,117590.0,117580.0,0.23500989]
[1755391020177,0.46404484,117590.0,117580.0,0.23716989]
[1755391020390,0.46404484,117590.0,117580.0,0.23816989]
[1755391020596,0.46404484,117590.0,117580.0,0.40926684]
[1755391021330,0.46404484,117590.0,117580.0,0.23916989]
[1755391021536,0.46404484,117590.0,117580.0,0.40826684]
[1755391021537,0.17188249,117590.0,117580.0,0.40826684]
[1755391021739,0.17288249,117590.0,117580.0,0.40826684]
[1755391022150,0.17188249,117590.0,117580.0,0.40726684]
[1755391022878,0.17188249,117590.0,117580.0,0.23716989]
[1755391023093,0.17188249,117590.0,117580.0,0.01723584]
[1755391023390,0.59928484,117590.0,117580.0,0.01202584]
[1755391024039,0.59928484,117590.0,117580.0,0.01302584]
[1755391024457,0.17009695,117580.0,117570.0,0.15065584]
[1755391024705,0.4640593,117580.0,117570.0,0.14754584]
[1755391024952,0.17011142,117570.0,117560.0,0.02151833]
[1755391025152,0.46407377,117570.0,117560.0,0.02151833]
[1755391025385,0.46407377,117570.0,117560.0,0.01840833]
[1755391025591,0.46407377,117570.0,117560.0,0.1765412]
[1755391025790,0.17191142,117570.0,117560.0,0.0409812]
[1755391026023,0.17191142,117570.0,117560.0,0.1796912]
[1755391026237,0.17191142,117570.0,117560.0,0.15711833]
[1755391026422,0.17191142,117570.0,117560.0,0.15910833]
[1755391027211,0.17191142,117570.0,117560.0,0.16010833]
[1755391027432,0.17191142,117570.0,117560.0,0.02550833]
[1755391027645,0.46407377,117570.0,117560.0,0.02040833]
[1755391027852,0.46407377,117570.0,117560.0,0.00838249]
[1755391027853,0.60915028,117570.0,117560.0,0.00838249]
[1755391028058,0.60915028,117570.0,117560.0,0.02040833]
[1755391028264,0.60915028,117570.0,117560.0,0.00838249]
[1755391028690,0.60915028,117570.0,117560.0,0.01840833]
[1755391029108,0.61215028,117570.0,117560.0,0.01940833]
[1755391029313,0.61215028,117570.0,117560.0,0.00738249]
[1755391030537,0.69696433,117570.0,117560.0,0.00738249]
[1755391031643,0.69796433,117570.0,117560.0,0.00738249]
[1755391031854,0.78278557,117570.0,117560.0,0.00738249]
[1755391032249,0.69796433,117570.0,117560.0,0.00738249]
[1755391035965,0.69684433,117570.0,117560.0,0.01049249]
[1755391036166,0.46627377,117570.0,117560.0,0.02450833]
[1755391036378,0.17411142,117570.0,117560.0,0.02450833]
[1755391036589,0.17411142,117570.0,117560.0,0.19463422]
[1755391036784,0.17411142,117570.0,117560.0,0.24469154]
[1755391037002,0.17411142,117570.0,117560.0,0.02450833]
[1755391037481,0.17411142,117570.0,117560.0,0.0266349]
[1755391038547,0.17411142,117570.0,117560.0,0.19676079]
[1755391038756,0.17411142,117570.0,117560.0,0.19463422]
[1755391039732,0.004,117570.0,117560.0,0.19463422]
[1755391039953,0.004,117570.0,117560.0,0.27390777]
[1755391040575,0.004,117570.0,117560.0,0.19463422]
[1755391043667,0.17411142,117570.0,117560.0,0.19463422]
[1755391044100,0.17411142,117570.0,117560.0,0.22019922]
[1755391044279,0.17411142,117570.0,117560.0,0.35603922]
[1755391044513,0.17411142,117570.0,117560.0,0.35607922]
[1755391044701,0.17411142,117570.0,117560.0,0.22019922]
[1755391045137,0.17411142,117570.0,117560.0,0.35603922]
[1755391050123,0.004,117570.0,117560.0,0.35603922]
[1755391053541,0.17411142,117570.0,117560.0,0.35603922]
[1755391058714,0.17411142,117570.0,117560.0,0.18591333]
[1755391058923,0.17411142,117570.0,117560.0,0.04497333]
[1755391058924,0.53171084,117570.0,117560.0,0.04497333]
[1755391059135,0.53171084,117570.0,117560.0,0.01940833]
[1755391059342,0.60387377,117570.0,117560.0,0.01940833]
[1755391059546,0.60499377,117570.0,117560.0,0.01940833]
[1755391060160,0.60387377,117570.0,117560.0,0.01940833]
[1755391063432,0.31171142,117570.0,117560.0,0.01940833]
[1755391063653,0.60387377,117570.0,117560.0,0.01940833]
[1755391066604,0.31171142,117570.0,117560.0,0.01940833]
[1755391066817,0.60387377,117570.0,117560.0,0.01940833]
[1755391070277,0.17411142,117570.0,117560.0,0.02452833]
[1755391070671,0.004,117570.0,117560.0,0.19678079]
[1755391070883,0.17411142,117570.0,117560.0,0.19465422]
[1755391072668,0.46647377,117570.0,117560.0,0.01940833]
[1755391072877,0.60211377,117570.0,117560.0,0.03747766]
[1755391073869,0.30995142,117570.0,117560.0,0.03747766]
[1755391074068,0.60211377,117570.0,117560.0,0.01940833]
[1755391075013,0.60322377,117570.0,117560.0,0.00738249]
[1755391075622,0.61913855,117570.0,117560.0,0.00738249]
[1755391078138,0.6191371,117570.0,117560.0,0.00738249]
[1755391079584,0.6180271,117570.0,117560.0,0.00738249]
[1755391080472,0.69807151,117570.0,117560.0,0.00738249]
[1755391080651,1.12288556,117570.0,117560.0,0.00738249]
[1755391081964,1.82288556,117570.0,117560.0,0.00738249]
[1755391082657,1.82288527,117570.0,117560.0,0.00738249]
[1755391082882,2.15884387,117570.0,117560.0,0.00738249]
[1755391083514,1.86668152,117570.0,117560.0,0.00738249]
[1755391085099,1.84033429,117570.0,117560.0,0.00738249]
[1755391087338,2.13249664,117570.0,117560.0,0.00738249]
[1755391087840,1.87264664,117570.0,117560.0,0.00738249]
[1755391088071,2.16480899,117570.0,117560.0,0.00738249]
[1755391088563,2.16480343,117570.0,117560.0,0.00738249]
[1755391089012,2.1384562,117570.0,117560.0,0.00738249]
[1755391089445,1.87186785,117570.0,117560.0,0.00738249]
[1755391090112,1.5797055,117570.0,117560.0,0.00738249]
[1755391090339,1.87186785,117570.0,117560.0,0.00738249]
[1755391091051,1.87186785,117570.0,117520.0,0.431634]
[1755391091052,0.17014036,117550.0,117530.0,0.01202584]
[1755391091278,0.59719719,117540.0,117530.0,0.01519584]
[1755391091502,0.59719719,117540.0,117530.0,0.01718584]
[1755391092211,0.59719719,117540.0,117530.0,0.01818584]
[1755391092404,0.59719719,117540.0,117530.0,0.01833321]
[1755391092618,0.59719719,117540.0,117530.0,0.01733321]
[1755391092817,0.59819719,117540.0,117530.0,0.01733321]
[1755391093055,0.60689265,117540.0,117530.0,0.01733321]
[1755391093240,0.64192915,117540.0,117530.0,0.01733321]
[1755391093438,1.34192915,117540.0,117530.0,0.01733321]
[1755391095088,1.34192915,117540.0,117530.0,0.01833321]
[1755391098825,1.33323369,117540.0,117530.0,0.01833321]
[1755391100838,1.3416938,117540.0,117530.0,0.01833321]
[1755391104239,1.35759863,117540.0,117530.0,0.01833321]
[1755391105021,1.35939863,117540.0,117530.0,0.01833321]
[1755391105613,1.06723628,117540.0,117530.0,0.01833321]
[1755391105826,1.32436371,117540.0,117530.0,0.01833321]
[1755391106411,1.03220136,117540.0,117530.0,0.01833321]
[1755391106653,1.32436371,117540.0,117530.0,0.01833321]
[1755391107500,1.40917776,117540.0,117530.0,0.00114737]
[1755391107716,1.495119,117540.0,117530.0,0.00114737]
[1755391109078,1.493999,117540.0,117530.0,0.00114737]
[1755391110191,1.493999,117540.0,117530.0,0.00630737]
[1755391111830,1.49400634,117540.0,117530.0,0.00630737]
[1755391112717,1.49400634,117540.0,117530.0,0.00431737]
[1755391112907,1.49400634,117540.0,117530.0,0.00114737]
[1755391113948,1.49400634,117540.0,117530.0,0.00410737]
[1755391114741,1.4940093,117540.0,117530.0,0.00410737]
[1755391117627,1.4940093,117540.0,117530.0,0.00114737]
[1755391120231,1.20184695,117540.0,117530.0,0.00114737]
[1755391120451,1.4940093,117540.0,117530.0,0.00619737]
[1755391120573,1.40918806,117540.0,117530.0,0.00619737]
[1755391124821,1.40918806,117540.0,117530.0,0.00114737]
[1755391125630,1.74918806,117540.0,117530.0,0.00114737]
[1755391125988,1.77372681,117540.0,117530.0,0.00114737]
[1755391126190,1.85854805,117540.0,117530.0,0.00114737]
[1755391127010,1.85854805,117540.0,117530.0,0.00014737]
[1755391128086,1.85954805,117540.0,117530.0,0.00014737]
[1755391128295,1.85854805,117540.0,117530.0,0.00014737]
[1755391128710,1.86154805,117540.0,117530.0,0.00114737]
[1755391130883,1.86042805,117540.0,117530.0,0.00114737]
[1755391131998,1.86154805,117540.0,117530.0,0.00114737]
[1755391133545,1.88789528,117540.0,117530.0,0.00114737]
[1755391134192,1.91347428,117540.0,117530.0,0.00114737]
[1755391135777,0.17018379,117520.0,117510.0,0.00296]
[1755391136010,1.38228019,117520.0,117510.0,0.00519737]
[1755391136203,1.3981969,117520.0,117510.0,0.00519737]
[1755391136855,1.3981969,117520.0,117510.0,0.00619737]
[1755391137206,1.3991969,117520.0,117510.0,0.00719737]
[1755391137850,1.39918885,117520.0,117510.0,0.00719737]
[1755391138059,1.46235638,117520.0,117510.0,0.00719737]
[1755391138425,1.46235426,117520.0,117510.0,0.00719737]
[1755391139404,1.17019191,117520.0,117510.0,0.00719737]
[1755391139524,1.46235426,117520.0,117510.0,0.00719737]
[1755391140538,1.80235426,117520.0,117510.0,0.00214737]
[1755391140738,2.16531361,117520.0,117510.0,0.00214737]
[1755391140954,2.16643361,117520.0,117510.0,0.00214737]
[1755391141161,2.1979811,117520.0,117510.0,0.00214737]
[1755391142006,2.1969811,117520.0,117510.0,0.00114737]
[1755391142169,2.7469811,117520.0,117510.0,0.00114737]
[1755391142363,2.7509811,117520.0,117510.0,0.00114737]
[1755391142688,2.7469811,117520.0,117510.0,0.00014737]
[1755391142887,2.73307456,117520.0,117510.0,0.00014737]
[1755391143109,2.75296313,117520.0,117510.0,0.00114737]
[1755391143292,2.75096313,117520.0,117510.0,0.00114737]
[1755391143525,2.16663481,117520.0,117510.0,0.00114737]
[1755391143728,2.75183815,117520.0,117510.0,0.00114737]
[1755391144330,2.75183537,117520.0,117510.0,0.00114737]
[1755391144624,2.72548814,117520.0,117510.0,0.00114737]
[1755391145328,2.69848739,117520.0,117510.0,0.00114737]
[1755391151336,2.72548814,117520.0,117510.0,0.00114737]
[1755391151746,2.72548289,117520.0,117510.0,0.00114737]
[1755391152696,2.77663289,117520.0,117510.0,0.00114737]
[1755391158619,2.19230819,117520.0,117510.0,0.00114737]
[1755391158842,2.77663289,117520.0,117510.0,0.00114737]
[1755391159650,2.74963214,117520.0,117510.0,0.00114737]
[1755391164555,0.5276473,117510.0,117500.0,0.00324]
[1755391164709,1.99019994,117510.0,117500.0,0.00527]
[1755391165909,0.3895064,117490.0,117480.0,0.01772039]
[1755391166122,1.32268121,117490.0,117480.0,0.02024111]
[1755391166811,1.39583419,117490.0,117480.0,0.02024111]
[1755391167896,1.39583419,117490.0,117480.0,0.02348111]
[1755391168060,1.80000172,117490.0,117480.0,0.02448111]
[1755391168265,1.80596827,117490.0,117480.0,0.02548111]
[1755391170083,1.80807827,117490.0,117480.0,0.02548111]
[1755391171499,1.80596827,117490.0,117480.0,0.02548111]
[1755391172204,1.8059918,117490.0,117480.0,0.02548111]
[1755391173774,1.73232563,117490.0,117480.0,0.02548111]
[1755391174981,1.3074135,117490.0,117480.0,0.02548111]
[1755391175210,1.35937332,117490.0,117480.0,0.03750695]
[1755391175437,1.01933332,117490.0,117480.0,0.3557971]
[1755391175680,0.88713332,117490.0,117480.0,0.52391082]
[1755391175899,1.01941332,117490.0,117480.0,0.5938932]
[1755391176385,0.88713332,117490.0,117480.0,0.5938932]
[1755391176586,0.87122725,117490.0,117480.0,0.52391082]
[1755391177889,0.17122725,117490.0,117480.0,0.52391082]
[1755391178115,0.001,117490.0,117480.0,0.52391082]
[1755391181670,0.001,117490.0,117480.0,0.60872487]
[1755391181918,0.001,117490.0,117480.0,0.74084487]
[1755391182130,0.001,117490.0,117480.0,0.82566611]
[1755391184854,0.001,117490.0,117480.0,0.85124811]
[1755391194451,0.001,117490.0,117480.0,1.14368024]
[1755391195085,0.001,117490.0,117480.0,0.85124811]
[1755391195520,0.001,117490.0,117480.0,1.14368024]
[1755391195732,0.001,117490.0,117480.0,0.55881598]
[1755391195939,0.001,117490.0,117480.0,0.85124811]
[1755391197248,0.001,117490.0,117480.0,0.82751811]
[1755391197463,0.001,117490.0,117480.0,0.13061435]
[1755391197464,0.17628725,117490.0,117480.0,0.13061435]
[1755391197709,0.17628725,117490.0,117480.0,0.11705819]
[1755391197917,0.17628725,117490.0,117480.0,0.02021111]
[1755391198126,0.17628725,117490.0,117480.0,0.03223695]
[1755391198333,0.17628725,117490.0,117480.0,0.02021111]
[1755391198551,0.17628725,117490.0,117480.0,0.03223695]
[1755391198769,0.203288,117490.0,117480.0,0.03223695]
[1755391199919,0.17628725,117490.0,117480.0,0.03223695]
[1755391201175,0.87628725,117490.0,117480.0,0.03223695]
[1755391208566,0.17628725,117490.0,117480.0,0.03223695]
[1755391210013,0.25337255,117490.0,117480.0,0.03223695]
[1755391210965,0.17226725,117490.0,117480.0,0.03223695]
[1755391211399,0.87226725,117490.0,117480.0,0.03223695]
[1755391216906,1.16597938,117490.0,117480.0,0.03223695]
[1755391217025,1.16469938,117490.0,117480.0,0.03223695]
[1755391217647,0.87226725,117490.0,117480.0,0.03223695]
[1755391218216,0.95708849,117490.0,117480.0,0.03223695]
[1755391218426,0.25708849,117490.0,117480.0,0.03223695]
[1755391221333,0.95708849,117490.0,117480.0,0.03223695]
[1755391222016,0.87226725,117490.0,117480.0,0.03223695]
[1755391224889,0.87226725,117490.0,117480.0,0.03516695]
[1755391225317,0.88817696,117490.0,117480.0,0.03516695]
[1755391225576,0.88817696,117490.0,117480.0,0.03720695]
[1755391226277,1.00198725,117490.0,117480.0,0.3317671]
[1755391226501,1.00198725,117490.0,117480.0,0.32963908]
[1755391226707,1.00198725,117490.0,117480.0,0.03720695]
[1755391226979,1.00198725,117490.0,117480.0,0.32963908]
[1755391227405,0.30198725,117490.0,117480.0,0.32963908]
[1755391228021,0.30198725,117490.0,117480.0,0.03720695]
[1755391228269,0.30198725,117490.0,117480.0,0.3317671]
[1755391228407,0.30198725,117490.0,117480.0,0.32963908]
[1755391230070,0.30198725,117490.0,117480.0,0.49988082]
[1755391232245,0.30198725,117490.0,117480.0,0.03720695]
[1755391232459,0.30198725,117490.0,117480.0,0.03933497]
[1755391233595,0.30198725,117490.0,117480.0,0.50200884]
[1755391233826,0.30198725,117490.0,117480.0,0.49988082]
[1755391234275,0.17021357,117500.0,117490.0,0.18225309]
[1755391234511,0.30197357,117500.0,117490.0,0.47677522]
[1755391234730,0.30197357,117500.0,117490.0,0.47987522]
[1755391234921,0.30197357,117500.0,117490.0,0.30964797]
[1755391235063,0.30197357,117500.0,117490.0,0.01721584]
[1755391235250,0.30197357,117500.0,117490.0,0.06722592]
[1755391235902,0.30495357,117500.0,117490.0,0.06303592]
[1755391236260,0.5973857,117500.0,117490.0,0.01302584]
[1755391236424,0.5987157,117500.0,117490.0,0.01302584]
[1755391236799,0.61463717,117500.0,117490.0,0.01302584]
[1755391237427,1.31463717,117500.0,117490.0,0.01302584]
[1755391239398,2.01330717,117500.0,117490.0,0.01302584]
[1755391239630,1.31330717,117500.0,117490.0,0.01302584]
[1755391241757,1.02087504,117500.0,117490.0,0.01302584]
[1755391243543,1.01889504,117500.0,117490.0,0.01821584]
[1755391243968,1.00297357,117500.0,117490.0,0.05110175]
[1755391245014,0.87121357,117500.0,117490.0,0.05110175]
[1755391245152,1.00297357,117500.0,117490.0,0.34353388]
[1755391245562,1.00297357,117500.0,117490.0,0.05110175]
[1755391246368,0.87121357,117500.0,117490.0,0.51376113]
[1755391246543,1.00297357,117500.0,117490.0,0.31064797]
[1755391246755,1.00297357,117500.0,117490.0,0.01821584]
[1755391246955,0.30297357,117500.0,117490.0,0.01821584]
[1755391247515,0.30297357,117500.0,117490.0,0.00619]
[1755391247720,0.30297357,117500.0,117490.0,0.01612584]
[1755391248133,0.30431357,117500.0,117490.0,0.01302584]
[1755391249385,0.30431357,117500.0,117490.0,0.01612584]
[1755391249585,0.30431357,117500.0,117490.0,0.01821584]
[1755391254102,0.001,117500.0,117490.0,0.53078524]
[1755391254303,0.30297276,117500.0,117490.0,0.53078524]
[1755391254561,0.13276,117500.0,117490.0,0.53078524]
[1755391255107,0.13276,117500.0,117490.0,0.23835311]
[1755391255313,0.13276,117500.0,117490.0,0.53078524]
[1755391255973,0.30297276,117500.0,117490.0,0.01821584]
[1755391256202,0.30297276,117500.0,117490.0,0.31064797]
[1755391258097,0.30297276,117500.0,117490.0,0.48087522]
[1755391267958,0.001,117500.0,117490.0,0.48087522]
[1755391268178,0.001,117500.0,117490.0,0.69740927]
[1755391268408,0.001,117500.0,117490.0,0.78223051]
[1755391268826,0.001,117500.0,117490.0,0.80780951]
[1755391269675,0.002,117500.0,117490.0,0.80880951]
[1755391269886,0.002,117500.0,117490.0,0.80980951]
[1755391270085,0.13172,117510.0,117500.0,0.1822386]
[1755391270287,0.13172,117510.0,117500.0,0.47668073]
[1755391270531,0.13172,117510.0,117500.0,0.47993073]
[1755391270982,0.17869297,117520.0,117510.0,0.18222412]
[1755391270983,0.31041297,117520.0,117510.0,0.18222412]
[1755391271262,0.31041297,117520.0,117510.0,0.47666625]
[1755391271481,0.31041297,117520.0,117510.0,0.47991625]
[1755391271702,0.31041297,117520.0,117510.0,0.54748695]
[1755391272382,0.17869007,117530.0,117520.0,0.01202584]
[1755391272635,1.01041007,117530.0,117520.0,0.01403584]
[1755391272864,1.01041007,117530.0,117520.0,0.01941313]
[1755391273294,1.01239007,117530.0,117520.0,0.01941313]
[1755391273472,1.01239007,117530.0,117520.0,0.02041313]
[1755391273708,1.01939007,117530.0,117520.0,0.02041313]
[1755391274672,1.01741007,117530.0,117520.0,0.19059692]
[1755391274868,0.83872,117530.0,117520.0,0.48090176]
[1755391275413,1.00888931,117530.0,117520.0,0.18846963]
[1755391275589,0.30888931,117530.0,117520.0,0.48090176]
[1755391277050,0.31086931,117530.0,117520.0,0.48090176]
[1755391277260,0.31086931,117530.0,117520.0,0.18320963]
[1755391277937,0.31086931,117530.0,117520.0,0.18645963]
[1755391278491,0.31086931,117530.0,117520.0,0.18846963]
[1755391278881,0.30888931,117530.0,117520.0,0.18846963]
[1755391279176,0.30888931,117530.0,117520.0,0.01828584]
[1755391279748,0.30888931,117530.0,117520.0,0.31071797]
[1755391280464,0.30888931,117530.0,117520.0,0.01828584]
[1755391283053,0.30888931,117530.0,117520.0,0.18846963]
[1755391283385,0.30888931,117530.0,117520.0,0.01828584]
[1755391283789,0.30888931,117530.0,117520.0,0.31071797]
[1755391294224,0.31086931,117530.0,117520.0,0.01828584]
[1755391294427,0.31086931,117530.0,117520.0,0.01627584]
[1755391296031,0.31086931,117530.0,117520.0,0.01835584]
[1755391296699,0.31086931,117530.0,117520.0,0.23745789]
[1755391297407,0.32678805,117530.0,117520.0,0.23745789]
[1755391303075,0.02291874,117530.0,117520.0,0.75838373]
[1755391303234,0.007,117530.0,117520.0,0.75838373]
[1755391304852,0.005,117530.0,117520.0,0.75838373]
[1755391305385,0.32624648,117540.0,117520.0,0.75738373]
[1755391305597,0.32624648,117540.0,117530.0,0.22122916]
[1755391305802,0.32822648,117540.0,117530.0,0.22433205]
[1755391306670,0.32922648,117540.0,117530.0,0.22433205]
[1755391306883,0.32822648,117540.0,117530.0,0.22433205]
[1755391307232,0.32922648,117540.0,117530.0,0.22533205]
[1755391307941,0.32922648,117540.0,117530.0,0.22633205]
[1755391308661,0.76876058,117540.0,117530.0,0.002]
[1755391308873,0.85358182,117540.0,117530.0,0.002]
[1755391309327,0.85358182,117540.0,117530.0,0.01402584]
[1755391309537,0.85358182,117540.0,117530.0,0.002]
[1755391309744,0.85358182,117540.0,117530.0,0.01402584]
[1755391310255,1.55358182,117540.0,117530.0,0.01402584]
[1755391310785,1.32273483,117540.0,117530.0,0.01402584]
[1755391310997,1.32273483,117540.0,117530.0,0.002]
[1755391311209,1.40754888,117540.0,117530.0,0.002]
[1755391311412,1.4075461,117540.0,117530.0,0.002]
[1755391311841,1.40754606,117540.0,117530.0,0.002]
[1755391312038,1.8323673,117540.0,117530.0,0.001]
[1755391312413,0.17016931,117530.0,117520.0,0.01202584]
[1755391312780,1.16432766,117530.0,117520.0,0.01202584]
[1755391312899,1.18026683,117530.0,117520.0,0.01202584]
[1755391314334,0.87214931,117530.0,117520.0,0.01202584]
[1755391314547,1.18159249,117530.0,117520.0,0.01202584]
[1755391314674,1.18026249,117530.0,117520.0,0.01202584]
[1755391316037,0.88908414,117530.0,117520.0,0.01302584]
[1755391317389,1.18126249,117530.0,117520.0,0.01302584]
[1755391319390,1.18125647,117530.0,117520.0,0.01302584]
[1755391321521,1.31285647,117530.0,117520.0,0.01302584]
[1755391325280,1.02067812,117530.0,117520.0,0.01302584]
[1755391325488,1.31285647,117530.0,117520.0,0.01302584]
[1755391325673,1.02067812,117530.0,117520.0,0.01302584]
[1755391327388,1.31285647,117530.0,117520.0,0.01302584]
[1755391330773,1.23982477,117530.0,117520.0,0.01302584]
[1755391332517,1.02067812,117530.0,117520.0,0.01302584]
[1755391332730,1.23982477,117530.0,117520.0,0.01599584]
[1755391333799,1.23982245,117530.0,117520.0,0.01599584]
[1755391335828,1.0206758,117530.0,117520.0,0.01599584]
[1755391336028,1.23982245,117530.0,117520.0,0.01803584]
[1755391337517,1.23784245,117530.0,117520.0,0.01803584]
[1755391341137,1.06032719,117530.0,117520.0,0.01803584]
[1755391341618,1.2304965,117530.0,117520.0,0.01803584]
[1755391342424,1.21457001,117530.0,117520.0,0.01803584]
[1755391342627,1.23051449,117530.0,117520.0,0.01803584]
[1755391347201,1.23249449,117530.0,117520.0,0.01803584]
[1755391356383,1.23249449,117530.0,117520.0,0.01599584]
[1755391358797,1.01334784,117530.0,117520.0,0.01599584]
[1755391359195,1.23249449,117530.0,117520.0,0.01599584]
[1755391359943,1.01334784,117530.0,117520.0,0.01302584]
[1755391360142,1.2324951,117530.0,117520.0,0.01302584]
[1755391361380,1.01334845,117530.0,117520.0,0.01302584]
[1755391361913,1.2324951,117530.0,117520.0,0.01302584]
[1755391362154,1.2324951,117530.0,117520.0,0.01616584]
[1755391364534,1.2324951,117530.0,117520.0,0.01818584]
[1755391366934,1.01334845,117530.0,117520.0,0.01818584]
[1755391367160,1.2324951,117530.0,117520.0,0.01818584]
[1755391370697,1.2324951,117530.0,117520.0,0.01302584]
[1755391371866,1.23249645,117530.0,117520.0,0.01302584]
[1755391372350,1.2324964,117530.0,117520.0,0.01302584]
[1755391377171,1.2324964,117530.0,117520.0,0.01616584]
[1755391377401,1.2324964,117530.0,117520.0,0.01818584]
[1755391379902,1.23249636,117530.0,117520.0,0.01818584]
[1755391388158,1.23249636,117530.0,117520.0,0.01302584]
[1755391388426,1.9626083,117530.0,117520.0,0.001]
[1755391388686,1.96260545,117530.0,117520.0,0.001]
[1755391390595,1.87778421,117530.0,117520.0,0.001]
[1755391391073,1.87645421,117530.0,117520.0,0.001]
[1755391391565,1.87644634,117530.0,117520.0,0.001]
[1755391391739,1.18379229,117530.0,117520.0,0.001]
[1755391391911,0.96464564,117530.0,117520.0,0.001]
[1755391394638,1.66464564,117530.0,117520.0,0.001]
[1755391396049,1.44549899,117530.0,117520.0,0.001]
[1755391396258,1.66464564,117530.0,117520.0,0.001]
[1755391396479,1.88379229,117530.0,117520.0,0.001]
[1755391398892,1.88378673,117530.0,117520.0,0.001]
[1755391399800,1.44549343,117530.0,117520.0,0.001]
[1755391400015,1.88378673,117530.0,117520.0,0.001]
[1755391403297,1.86785666,117530.0,117520.0,0.001]
[1755391403512,1.88378597,117530.0,117520.0,0.001]
[1755391403724,1.86785666,117530.0,117520.0,0.001]
[1755391404003,1.88378568,117530.0,117520.0,0.001]
[1755391409335,1.86785666,117530.0,117520.0,0.001]
[1755391409602,1.88378761,117530.0,117520.0,0.001]
[1755391411551,1.96860885,117530.0,117520.0,0.001]
[1755391412395,1.88378761,117530.0,117520.0,0.001]
[1755391412614,1.89581361,117530.0,117520.0,0.001]
[1755391415094,1.87988266,117530.0,117520.0,0.001]
[1755391415301,1.89581898,117530.0,117520.0,0.001]
[1755391417076,1.90179669,117530.0,117520.0,0.001]
[1755391417787,1.98661793,117530.0,117520.0,0.001]
[1755391418030,1.98662789,117530.0,117520.0,0.001]
[1755391432567,1.76748124,117530.0,117520.0,0.001]
[1755391432774,1.98662789,117530.0,117520.0,0.001]
[1755391433849,2.00407691,117530.0,117520.0,0.001]
[1755391434040,6.8541615,117530.0,117520.0,0.001]
[1755391435050,6.8561615,117530.0,117520.0,0.001]
[1755391435430,0.17019828,117510.0,117500.0,0.01515584]
[1755391435637,0.52046493,117510.0,117500.0,0.01711584]
[1755391435867,0.53639906,117510.0,117500.0,0.01711584]
[1755391437022,0.59933316,117510.0,117500.0,0.01711584]
[1755391437252,0.60033316,117510.0,117500.0,0.00609]
[1755391437459,0.81947981,117510.0,117500.0,0.00609]
[1755391437868,0.60033316,117510.0,117500.0,0.00609]
[1755391438627,1.30033316,117510.0,117500.0,0.00609]
[1755391439902,1.30033316,117510.0,117500.0,0.01811584]
[1755391440302,1.88269976,117510.0,117500.0,0.001]
[1755391440997,1.88269976,117510.0,117500.0,0.00413]
[1755391441311,1.88268883,117510.0,117500.0,0.00609]
[1755391441469,1.66354218,117510.0,117500.0,0.00609]
[1755391447799,1.44439553,117510.0,117500.0,0.00609]
[1755391448217,1.66354218,117510.0,117500.0,0.00609]
[1755391448739,1.88268883,117510.0,117500.0,0.00609]
[1755391449721,1.88267659,117510.0,117500.0,0.00609]
[1755391450105,1.66352994,117510.0,117500.0,0.00609]
[1755391452696,1.66352976,117510.0,117500.0,0.00609]
[1755391455621,1.44438311,117510.0,117500.0,0.00609]
[1755391455827,1.66218976,117510.0,117500.0,0.00609]